[Event "Live Chess"]
[Site "Chess.com"]
[Date "2023.05.21"]
[Round "-"]
[White "Brooms1989"]
[Black "viktorskliarov"]
[Result "0-1"]
[WhiteElo "1152"]
[BlackElo "2649"]
[TimeControl "300"]
[EndTime "6:05:13 PDT"]
[Termination "viktorskliarov won by checkmate"]

1. e4 {[%clk 0:04:56.1]} 1... c5 {[%clk 0:04:56.6]} 2. Nc3 {[%clk 0:04:54.7]}
2... Nc6 {[%clk 0:04:55.2]} 3. f4 {[%clk 0:04:52.7]} 3... g6 {[%clk 0:04:51.9]}
4. Bb5 {[%clk 0:04:49.9]} 4... Nd4 {[%clk 0:04:50.8]} 5. Nf3 {[%clk 0:04:40.5]}
5... Bg7 {[%clk 0:04:48.1]} 6. Nxd4 {[%clk 0:04:38.4]} 6... cxd4 {[%clk
0:04:46.1]} 7. Ne2 {[%clk 0:04:32.3]} 7... a6 {[%clk 0:04:35.5]} 8. Ba4 {[%clk
0:04:30.2]} 8... b5 {[%clk 0:04:34.5]} 9. Bb3 {[%clk 0:04:29]} 9... Bb7 {[%clk
0:04:32.7]} 10. d3 {[%clk 0:04:27.5]} 10... Qb6 {[%clk 0:04:29.1]} 11. O-O
{[%clk 0:04:20.2]} 11... Nf6 {[%clk 0:04:23.1]} 12. h3 {[%clk 0:04:16.8]} 12...
Nxe4 {[%clk 0:04:18]} 13. Kh1 {[%clk 0:04:13.6]} 13... Nc5 {[%clk 0:04:10.9]}
14. f5 {[%clk 0:03:55.9]} 14... Nxb3 {[%clk 0:03:59.8]} 15. axb3 {[%clk
0:03:53.5]} 15... O-O {[%clk 0:03:56.8]} 16. fxg6 {[%clk 0:03:40.4]} 16... hxg6
{[%clk 0:03:54.2]} 17. Bd2 {[%clk 0:03:17.2]} 17... Rac8 {[%clk 0:03:43.1]} 18.
c3 {[%clk 0:03:07.2]} 18... dxc3 {[%clk 0:03:34.9]} 19. Bxc3 {[%clk 0:03:07.1]}
19... Qe3 {[%clk 0:03:22.8]} 20. Bxg7 {[%clk 0:02:51.2]} 20... Qxh3+ {[%clk
0:03:19.2]} 21. Kg1 {[%clk 0:02:45.5]} 21... Qxg2# {[%clk 0:03:19.1]} 0-1

[Event "Live Chess"]
[Site "Chess.com"]
[Date "2023.05.21"]
[Round "-"]
[White "LiamBellwood"]
[Black "Ian-Morley"]
[Result "1-0"]
[WhiteElo "1914"]
[BlackElo "1060"]
[TimeControl "300"]
[EndTime "6:05:16 PDT"]
[Termination "LiamBellwood won by checkmate"]

1. d4 {[%clk 0:04:46.9]} 1... e5 {[%clk 0:04:57.6]} 2. dxe5 {[%clk 0:04:40.1]}
2... Nc6 {[%clk 0:04:56.5]} 3. Nf3 {[%clk 0:04:39.2]} 3... Qe7 {[%clk 0:04:56]}
4. Bg5 {[%clk 0:04:37.4]} 4... Qb4+ {[%clk 0:04:55.2]} 5. Nc3 {[%clk 0:04:27.6]}
5... Nge7 {[%clk 0:04:51.2]} 6. Rb1 {[%clk 0:04:15.8]} 6... h6 {[%clk 0:04:47]}
7. Bh4 {[%clk 0:04:14.8]} 7... g5 {[%clk 0:04:46]} 8. Bg3 {[%clk 0:04:14.1]}
8... Bg7 {[%clk 0:04:42.2]} 9. e3 {[%clk 0:04:08.7]} 9... Nd5 {[%clk 0:04:40.8]}
10. Qxd5 {[%clk 0:04:06.8]} 10... O-O {[%clk 0:04:34.2]} 11. h4 {[%clk
0:04:00.2]} 11... Re8 {[%clk 0:04:24]} 12. hxg5 {[%clk 0:03:58.6]} 12... Rxe5
{[%clk 0:04:21.8]} 13. Bxe5 {[%clk 0:03:56.8]} 13... Nxe5 {[%clk 0:04:21.1]} 14.
gxh6 {[%clk 0:03:55.5]} 14... Nxf3+ {[%clk 0:04:17.9]} 15. gxf3 {[%clk
0:03:55.3]} 15... c6 {[%clk 0:04:15.1]} 16. Qg5 {[%clk 0:03:53.5]} 16... Qf8
{[%clk 0:04:07.5]} 17. Bd3 {[%clk 0:03:45.6]} 17... f6 {[%clk 0:04:02.6]} 18.
Qg6 {[%clk 0:03:44.3]} 18... d5 {[%clk 0:04:01.2]} 19. Ke2 {[%clk 0:03:38.4]}
19... Be6 {[%clk 0:03:59.2]} 20. Rbg1 {[%clk 0:03:35.6]} 20... f5 {[%clk
0:03:55.4]} 21. hxg7 {[%clk 0:03:33]} 21... Qf7 {[%clk 0:03:51.8]} 22. Rh8#
{[%clk 0:03:31.5]} 1-0

[Event "Live Chess"]
[Site "Chess.com"]
[Date "2023.05.21"]
[Round "-"]
[White "gmnorfolk"]
[Black "chessfiction"]
[Result "0-1"]
[WhiteElo "2135"]
[BlackElo "2314"]
[TimeControl "300"]
[EndTime "6:05:20 PDT"]
[Termination "chessfiction won by resignation"]

1. d4 {[%clk 0:04:58.1]} 1... d5 {[%clk 0:04:58.7]} 2. c4 {[%clk 0:04:56.4]}
2... e5 {[%clk 0:04:54.9]} 3. dxe5 {[%clk 0:04:54.5]} 3... d4 {[%clk 0:04:52.9]}
4. Nf3 {[%clk 0:04:54.2]} 4... Nc6 {[%clk 0:04:51.2]} 5. Nbd2 {[%clk 0:04:51.2]}
5... Bg4 {[%clk 0:04:49.9]} 6. h3 {[%clk 0:04:48.1]} 6... Bh5 {[%clk 0:04:48.8]}
7. g3 {[%clk 0:04:46.9]} 7... Bb4 {[%clk 0:04:46]} 8. Bg2 {[%clk 0:04:45.2]}
8... Nge7 {[%clk 0:04:43.8]} 9. O-O {[%clk 0:04:43.6]} 9... O-O {[%clk 0:04:42]}
10. a3 {[%clk 0:04:42.6]} 10... Bxd2 {[%clk 0:04:40.7]} 11. Bxd2 {[%clk
0:04:41.6]} 11... Bxf3 {[%clk 0:04:37.7]} 12. Bxf3 {[%clk 0:04:40.3]} 12... Nxe5
{[%clk 0:04:37.6]} 13. Bxb7 {[%clk 0:04:39.4]} 13... Rb8 {[%clk 0:04:32.9]} 14.
Bg2 {[%clk 0:04:38.3]} 14... Nxc4 {[%clk 0:04:31.1]} 15. Bb4 {[%clk 0:04:33.8]}
15... Re8 {[%clk 0:04:26.9]} 16. Rc1 {[%clk 0:04:21.6]} 16... Ne5 {[%clk
0:04:18.9]} 17. f4 {[%clk 0:04:12.2]} 17... Nd7 {[%clk 0:04:03.6]} 18. Qxd4
{[%clk 0:04:05.4]} 18... c5 {[%clk 0:04:02.4]} 19. Bxc5 {[%clk 0:04:02.8]} 19...
Nxc5 {[%clk 0:04:01.7]} 20. Qxc5 {[%clk 0:03:56.1]} 20... Rxb2 {[%clk
0:04:00.8]} 21. Rfd1 {[%clk 0:03:34.3]} 21... Rd2 {[%clk 0:03:47.9]} 22. Rxd2
{[%clk 0:03:29.3]} 22... Qxd2 {[%clk 0:03:47.8]} 23. Bf3 {[%clk 0:03:26]} 23...
h5 {[%clk 0:03:44.1]} 24. h4 {[%clk 0:03:17.3]} 24... Rc8 {[%clk 0:03:41.3]} 25.
Qxc8+ {[%clk 0:03:10.9]} 25... Nxc8 {[%clk 0:03:41.2]} 26. Rxc8+ {[%clk
0:03:08.3]} 26... Kh7 {[%clk 0:03:40.5]} 27. Kg2 {[%clk 0:03:04]} 27... g6
{[%clk 0:03:34.8]} 28. Rc7 {[%clk 0:03:00.7]} 28... Kg7 {[%clk 0:03:24.5]} 29.
Rxa7 {[%clk 0:02:58]} 29... Qe3 {[%clk 0:03:21.3]} 30. Ra8 {[%clk 0:02:56]}
30... f6 {[%clk 0:03:16.3]} 31. a4 {[%clk 0:02:52.7]} 31... g5 {[%clk
0:03:13.6]} 32. hxg5 {[%clk 0:02:50.1]} 32... fxg5 {[%clk 0:03:13.5]} 33. fxg5
{[%clk 0:02:43.9]} 33... Qxg5 {[%clk 0:03:11.4]} 34. Ra7+ {[%clk 0:02:26.3]}
34... Kf8 {[%clk 0:03:06.9]} 35. Rh7 {[%clk 0:02:18.6]} 35... Qa5 {[%clk
0:02:59]} 36. Rxh5 {[%clk 0:02:15.3]} 36... Qxa4 {[%clk 0:02:58]} 37. g4 {[%clk
0:02:12.8]} 37... Kg7 {[%clk 0:02:53.9]} 38. Rg5+ {[%clk 0:02:10.8]} 38... Kh6
{[%clk 0:02:51.4]} 39. Rf5 {[%clk 0:02:09.9]} 39... Qd4 {[%clk 0:02:46.5]} 40.
Rd5 {[%clk 0:02:04.7]} 40... Qe3 {[%clk 0:02:44.9]} 41. Rd3 {[%clk 0:02:02.9]}
41... Qc1 {[%clk 0:02:41.8]} 42. Rd6+ {[%clk 0:01:57.9]} 42... Kg5 {[%clk
0:02:39.9]} 43. Rc6 {[%clk 0:01:53]} 43... Qd2 {[%clk 0:02:36.1]} 44. Rc5+
{[%clk 0:01:49.3]} 44... Kf6 {[%clk 0:02:31.3]} 45. g5+ {[%clk 0:01:42.8]} 45...
Kg6 {[%clk 0:02:23.1]} 46. Rd5 {[%clk 0:01:28.7]} 46... Qe3 {[%clk 0:02:19.8]}
47. Kf1 {[%clk 0:01:23.7]} 47... Kg7 {[%clk 0:02:14.2]} 48. Rd7+ {[%clk
0:01:18.9]} 48... Kg6 {[%clk 0:02:12.3]} 49. Rd6+ {[%clk 0:01:17.9]} 49... Kg7
{[%clk 0:02:11.6]} 50. g6 {[%clk 0:01:14.6]} 50... Qe5 {[%clk 0:02:04.2]} 51.
Rc6 {[%clk 0:01:11.1]} 51... Qa1+ {[%clk 0:02:01.9]} 52. Kf2 {[%clk 0:01:09.6]}
52... Qd4+ {[%clk 0:02:00.8]} 53. Kg2 {[%clk 0:01:03.1]} 53... Qe3 {[%clk
0:01:58]} 54. Ra6 {[%clk 0:00:55.4]} 54... Qg5+ {[%clk 0:01:55.5]} 55. Kf2
{[%clk 0:00:51.5]} 55... Qh4+ {[%clk 0:01:47.3]} 56. Kf1 {[%clk 0:00:48.1]}
56... Qh3+ {[%clk 0:01:45.2]} 57. Ke1 {[%clk 0:00:44.5]} 57... Qg3+ {[%clk
0:01:42.4]} 58. Kd2 {[%clk 0:00:40.5]} 58... Qf4+ {[%clk 0:01:39.8]} 59. Kd3
{[%clk 0:00:35.8]} 59... Qf5+ {[%clk 0:01:35.8]} 60. Kd2 {[%clk 0:00:29.9]}
60... Qf4+ {[%clk 0:01:30.1]} 61. Kd3 {[%clk 0:00:26.4]} 61... Qf5+ {[%clk
0:01:29]} 62. Kd2 {[%clk 0:00:25.6]} 62... Qc5 {[%clk 0:01:26.6]} 63. Rc6 {[%clk
0:00:23]} 63... Qd4+ {[%clk 0:01:24.8]} 64. Ke1 {[%clk 0:00:21.4]} 64... Qe3
{[%clk 0:01:21.5]} 65. Rc4 {[%clk 0:00:17.8]} 65... Qg1+ {[%clk 0:01:18.2]} 66.
Kd2 {[%clk 0:00:15.7]} 66... Qg5+ {[%clk 0:01:15.2]} 67. e3 {[%clk 0:00:14.1]}
67... Qa5+ {[%clk 0:01:12.3]} 68. Ke2 {[%clk 0:00:12.8]} 68... Qa2+ {[%clk
0:01:10.8]} 69. Kf1 {[%clk 0:00:10.8]} 69... Qxc4+ {[%clk 0:01:09.7]} 0-1

[Event "Live Chess"]
[Site "Chess.com"]
[Date "2023.05.21"]
[Round "-"]
[White "Man-Del-Brot"]
[Black "OleksiyJr1"]
[Result "1-0"]
[WhiteElo "1024"]
[BlackElo "1016"]
[TimeControl "300"]
[EndTime "6:05:20 PDT"]
[Termination "Man-Del-Brot won by resignation"]

1. d4 {[%clk 0:04:46.6]} 1... Nf6 {[%clk 0:04:58.1]} 2. Nf3 {[%clk 0:04:43.9]}
2... c6 {[%clk 0:04:55.6]} 3. Bf4 {[%clk 0:04:42.5]} 3... d5 {[%clk 0:04:51.9]}
4. e3 {[%clk 0:04:40.8]} 4... Nbd7 {[%clk 0:04:50.9]} 5. c4 {[%clk 0:04:33.5]}
5... dxc4 {[%clk 0:04:48.7]} 6. Bxc4 {[%clk 0:04:32.3]} 6... Nb6 {[%clk
0:04:47.9]} 7. Bd3 {[%clk 0:04:27.9]} 7... e6 {[%clk 0:04:47]} 8. O-O {[%clk
0:04:26]} 8... Bd6 {[%clk 0:04:44.4]} 9. Ne5 {[%clk 0:04:22.8]} 9... Nbd5 {[%clk
0:04:40.7]} 10. Bg3 {[%clk 0:04:18.1]} 10... O-O {[%clk 0:04:37.9]} 11. a3
{[%clk 0:04:13.1]} 11... b5 {[%clk 0:04:24]} 12. b4 {[%clk 0:04:10.3]} 12... a5
{[%clk 0:04:21.3]} 13. Nxc6 {[%clk 0:04:00.8]} 13... Qc7 {[%clk 0:04:01.3]} 14.
Bxd6 {[%clk 0:03:58.3]} 14... Qxd6 {[%clk 0:03:59.1]} 15. Nxa5 {[%clk
0:03:56.7]} 15... Ba6 {[%clk 0:03:41.4]} 16. Qe2 {[%clk 0:03:41.1]} 16... Rac8
{[%clk 0:03:34.1]} 17. Bxb5 {[%clk 0:03:23]} 17... Nc3 {[%clk 0:03:30.8]} 18.
Nxc3 {[%clk 0:03:18]} 18... Bxb5 {[%clk 0:03:29.7]} 19. Qxb5 {[%clk 0:03:12.5]}
19... Rxc3 {[%clk 0:03:27]} 20. Rfc1 {[%clk 0:02:44.8]} 20... Rfc8 {[%clk
0:03:24.4]} 21. Qf1 {[%clk 0:02:42.4]} 21... Ne4 {[%clk 0:03:22.1]} 22. Nb7
{[%clk 0:02:31]} 22... Qb6 {[%clk 0:03:17.1]} 23. Nc5 {[%clk 0:02:28.6]} 23...
Nxc5 {[%clk 0:03:14.9]} 24. dxc5 {[%clk 0:02:26.8]} 24... Qb5 {[%clk 0:03:07.7]}
25. Rxc3 {[%clk 0:02:25.4]} 1-0

[Event "Live Chess"]
[Site "Chess.com"]
[Date "2023.05.21"]
[Round "-"]
[White "mliszewski"]
[Black "ElectricFalcon"]
[Result "1-0"]
[WhiteElo "1798"]
[BlackElo "1068"]
[TimeControl "300"]
[EndTime "6:05:24 PDT"]
[Termination "mliszewski won by resignation"]

1. d4 {[%clk 0:04:58.1]} 1... d5 {[%clk 0:04:56.2]} 2. Bf4 {[%clk 0:04:57.4]}
2... Nc6 {[%clk 0:04:55]} 3. e3 {[%clk 0:04:56.7]} 3... Nf6 {[%clk 0:04:53.9]}
4. c4 {[%clk 0:04:56.2]} 4... Bf5 {[%clk 0:04:50.1]} 5. Nc3 {[%clk 0:04:55.2]}
5... e6 {[%clk 0:04:47.8]} 6. Nf3 {[%clk 0:04:53.3]} 6... Bd6 {[%clk 0:03:43.8]}
7. Bg5 {[%clk 0:04:51.2]} 7... O-O {[%clk 0:03:40.7]} 8. Bd3 {[%clk 0:04:47.3]}
8... Bxd3 {[%clk 0:03:38.7]} 9. Qxd3 {[%clk 0:04:46.5]} 9... Nb4 {[%clk
0:03:36.1]} 10. Qe2 {[%clk 0:04:40.6]} 10... dxc4 {[%clk 0:03:34.9]} 11. a3
{[%clk 0:04:38.8]} 11... Nc6 {[%clk 0:03:29.2]} 12. Qxc4 {[%clk 0:04:37.4]}
12... Be7 {[%clk 0:03:15.5]} 13. O-O {[%clk 0:04:35.5]} 13... Qd7 {[%clk
0:03:08.8]} 14. Rac1 {[%clk 0:04:34.2]} 14... a6 {[%clk 0:03:05.8]} 15. Ne2
{[%clk 0:04:29.1]} 15... b5 {[%clk 0:03:04.2]} 16. Qxc6 {[%clk 0:04:27.5]} 16...
Qxc6 {[%clk 0:02:54.9]} 17. Rxc6 {[%clk 0:04:27.4]} 17... Rfc8 {[%clk
0:02:47.1]} 18. Rfc1 {[%clk 0:04:25.4]} 18... Ra7 {[%clk 0:02:45.3]} 19. Ne5
{[%clk 0:04:17.6]} 19... h6 {[%clk 0:02:44.1]} 20. Bxf6 {[%clk 0:04:13.5]} 20...
Bxf6 {[%clk 0:02:43.4]} 21. Nd7 {[%clk 0:04:13.1]} 21... Be7 {[%clk 0:02:32.6]}
22. Nc5 {[%clk 0:04:06]} 22... Bd6 {[%clk 0:02:30.8]} 23. Ne4 {[%clk 0:04:03.6]}
23... Be7 {[%clk 0:02:23.4]} 24. Nf4 {[%clk 0:03:58.8]} 24... f5 {[%clk
0:02:22.4]} 25. Nd2 {[%clk 0:03:55.4]} 25... Bd6 {[%clk 0:02:20.3]} 26. Rxd6
{[%clk 0:03:49.1]} 26... cxd6 {[%clk 0:02:19.2]} 27. Rxc8+ {[%clk 0:03:48]}
27... Kf7 {[%clk 0:02:19.1]} 28. Rc1 {[%clk 0:03:41.1]} 28... e5 {[%clk
0:02:12.5]} 29. dxe5 {[%clk 0:03:38.7]} 29... dxe5 {[%clk 0:02:11.9]} 30. Nd5
{[%clk 0:03:36.4]} 30... Rd7 {[%clk 0:02:09.9]} 31. Rc7 {[%clk 0:03:34.8]} 31...
Ke6 {[%clk 0:02:08.3]} 32. Rxd7 {[%clk 0:03:32.9]} 32... Kxd7 {[%clk 0:02:08.2]}
33. Nf3 {[%clk 0:03:26.8]} 33... Kd6 {[%clk 0:02:06.4]} 34. Nc3 {[%clk
0:03:23.4]} 34... e4 {[%clk 0:02:05.8]} 35. Nd4 {[%clk 0:03:21.2]} 35... Kc5
{[%clk 0:02:04.7]} 36. b3 {[%clk 0:03:17.5]} 36... g6 {[%clk 0:02:03.5]} 37. Kf1
{[%clk 0:03:14.7]} 37... b4 {[%clk 0:02:01.2]} 38. axb4+ {[%clk 0:03:13.4]}
38... Kxb4 {[%clk 0:02:00.7]} 39. Nd5+ {[%clk 0:03:10.8]} 39... Kc5 {[%clk
0:01:57.6]} 40. Ne7 {[%clk 0:03:09.3]} 40... a5 {[%clk 0:01:56.1]} 41. Nxg6
{[%clk 0:03:07.5]} 41... Kb4 {[%clk 0:01:54.1]} 42. Ne7 {[%clk 0:03:05.6]} 42...
a4 {[%clk 0:01:53.5]} 43. bxa4 {[%clk 0:03:04.4]} 43... Kxa4 {[%clk 0:01:53.4]}
44. Nexf5 {[%clk 0:03:03.8]} 1-0

[Event "Live Chess"]
[Site "Chess.com"]
[Date "2023.05.21"]
[Round "-"]
[White "manthanit"]
[Black "Doge_Dandolo"]
[Result "0-1"]
[WhiteElo "1085"]
[BlackElo "1912"]
[TimeControl "300"]
[EndTime "6:05:27 PDT"]
[Termination "Doge_Dandolo won by resignation"]

1. e4 {[%clk 0:04:58.9]} 1... c6 {[%clk 0:04:58.8]} 2. d4 {[%clk 0:04:56.8]}
2... d5 {[%clk 0:04:58.3]} 3. exd5 {[%clk 0:04:55.7]} 3... cxd5 {[%clk
0:04:57.2]} 4. h3 {[%clk 0:04:49.6]} 4... Nc6 {[%clk 0:04:55.4]} 5. Bb5 {[%clk
0:04:47.6]} 5... Bf5 {[%clk 0:04:50.1]} 6. Nf3 {[%clk 0:04:44.9]} 6... e6 {[%clk
0:04:44.9]} 7. O-O {[%clk 0:04:38]} 7... Bd6 {[%clk 0:04:43.6]} 8. Nbd2 {[%clk
0:04:27.6]} 8... Ne7 {[%clk 0:04:37.7]} 9. c4 {[%clk 0:04:25.9]} 9... dxc4
{[%clk 0:04:31.7]} 10. Nxc4 {[%clk 0:04:24.5]} 10... Bc7 {[%clk 0:04:29.9]} 11.
Bg5 {[%clk 0:04:12.8]} 11... O-O {[%clk 0:04:28.1]} 12. Bxe7 {[%clk 0:04:10.2]}
12... Nxe7 {[%clk 0:04:20.4]} 13. Nfe5 {[%clk 0:03:56.5]} 13... a6 {[%clk
0:04:16.9]} 14. Bd7 {[%clk 0:03:51.3]} 14... b5 {[%clk 0:04:05.4]} 15. Ne3
{[%clk 0:03:34.3]} 15... Be4 {[%clk 0:04:00.4]} 16. f3 {[%clk 0:03:26.7]} 16...
Bd5 {[%clk 0:03:59.1]} 17. Re1 {[%clk 0:02:57.2]} 17... Bxe5 {[%clk 0:03:53.3]}
18. Nxd5 {[%clk 0:02:51.2]} 18... Nxd5 {[%clk 0:03:50.1]} 19. Bxe6 {[%clk
0:02:39.3]} 19... fxe6 {[%clk 0:03:43.3]} 20. Rxe5 {[%clk 0:02:36.7]} 20... Qf6
{[%clk 0:03:38]} 21. Qe2 {[%clk 0:02:25.2]} 21... Rae8 {[%clk 0:03:35.5]} 22.
Re1 {[%clk 0:02:16.6]} 22... Nf4 {[%clk 0:03:30.9]} 23. Qe3 {[%clk 0:01:31.4]}
23... Qg6 {[%clk 0:03:23.9]} 24. Qd2 {[%clk 0:01:24.1]} 24... Nxh3+ {[%clk
0:03:16.9]} 25. Kh2 {[%clk 0:01:18.3]} 25... Nf4 {[%clk 0:03:10]} 26. g3 {[%clk
0:01:13.4]} 26... Nh5 {[%clk 0:03:02.9]} 27. g4 {[%clk 0:00:53.9]} 27... Nf4
{[%clk 0:02:58.3]} 28. Kg3 {[%clk 0:00:46.8]} 28... Qh6 {[%clk 0:02:48.3]} 29.
Qh2 {[%clk 0:00:42.2]} 29... Qxh2+ {[%clk 0:02:45.7]} 30. Kxh2 {[%clk
0:00:41.5]} 30... Nd3 {[%clk 0:02:36.7]} 0-1

[Event "Live Chess"]
[Site "Chess.com"]
[Date "2023.05.21"]
[Round "-"]
[White "CrypticF1"]
[Black "Alfiedog12"]
[Result "1/2-1/2"]
[WhiteElo "491"]
[BlackElo "921"]
[TimeControl "300"]
[EndTime "6:05:40 PDT"]
[Termination "Game drawn by stalemate"]

1. e4 {[%clk 0:04:59.2]} 1... c6 {[%clk 0:04:57.6]} 2. Nf3 {[%clk 0:04:58.4]}
2... d5 {[%clk 0:04:55]} 3. exd5 {[%clk 0:04:55.8]} 3... cxd5 {[%clk 0:04:53.5]}
4. d4 {[%clk 0:04:53.5]} 4... Nf6 {[%clk 0:04:52.3]} 5. Nc3 {[%clk 0:04:51.7]}
5... Bg4 {[%clk 0:04:50.3]} 6. Bg5 {[%clk 0:04:50.6]} 6... e6 {[%clk 0:04:49.3]}
7. Bxf6 {[%clk 0:04:49.7]} 7... Qxf6 {[%clk 0:04:46.5]} 8. h3 {[%clk 0:04:48.5]}
8... Bxf3 {[%clk 0:04:44.1]} 9. Qxf3 {[%clk 0:04:45]} 9... Qxd4 {[%clk
0:04:38.1]} 10. Qd3 {[%clk 0:04:34.1]} 10... Qxd3 {[%clk 0:04:29.4]} 11. Bxd3
{[%clk 0:04:33.1]} 11... Nd7 {[%clk 0:04:29]} 12. O-O-O {[%clk 0:04:32.4]} 12...
Bb4 {[%clk 0:04:27.2]} 13. Bb5 {[%clk 0:04:30.7]} 13... a5 {[%clk 0:04:24.7]}
14. Bxd7+ {[%clk 0:04:29.5]} 14... Kxd7 {[%clk 0:04:22.9]} 15. a3 {[%clk
0:04:29.1]} 15... Bxc3 {[%clk 0:04:19.4]} 16. bxc3 {[%clk 0:04:29]} 16... Rac8
{[%clk 0:04:18.1]} 17. Rd3 {[%clk 0:04:26.6]} 17... Rc4 {[%clk 0:04:15.7]} 18.
Kb2 {[%clk 0:04:21]} 18... Rhc8 {[%clk 0:04:12.3]} 19. h4 {[%clk 0:04:12.2]}
19... Ke7 {[%clk 0:04:10]} 20. Rhh3 {[%clk 0:04:11.3]} 20... Kf6 {[%clk
0:04:09.3]} 21. g4 {[%clk 0:04:09.7]} 21... h6 {[%clk 0:04:06.4]} 22. g5+ {[%clk
0:04:08.2]} 22... hxg5 {[%clk 0:04:04]} 23. hxg5+ {[%clk 0:04:07.6]} 23... Kxg5
{[%clk 0:03:59.6]} 24. Rdf3 {[%clk 0:04:00.5]} 24... Rf4 {[%clk 0:03:51.3]} 25.
Rxf4 {[%clk 0:03:59.1]} 25... Kxf4 {[%clk 0:03:49]} 26. Rh4+ {[%clk 0:03:57.7]}
26... Kg5 {[%clk 0:03:47.3]} 27. Rh7 {[%clk 0:03:54.5]} 27... Kg6 {[%clk
0:03:45.8]} 28. Rh1 {[%clk 0:03:52]} 28... Rc4 {[%clk 0:03:44.4]} 29. Rg1+
{[%clk 0:03:47.5]} 29... Kf6 {[%clk 0:03:36.8]} 30. Kb3 {[%clk 0:03:44.8]} 30...
Rf4 {[%clk 0:03:35.3]} 31. Rf1 {[%clk 0:03:43.4]} 31... e5 {[%clk 0:03:33]} 32.
Re1 {[%clk 0:03:35.8]} 32... e4 {[%clk 0:03:31.2]} 33. c4 {[%clk 0:03:29.9]}
33... dxc4+ {[%clk 0:03:27.8]} 34. Kxc4 {[%clk 0:03:28.5]} 34... e3+ {[%clk
0:03:22.1]} 35. Kd3 {[%clk 0:03:26]} 35... exf2 {[%clk 0:03:20.9]} 36. Rf1
{[%clk 0:03:24.5]} 36... g5 {[%clk 0:03:16.9]} 37. Ke3 {[%clk 0:03:23.6]} 37...
Rf5 {[%clk 0:03:15.1]} 38. Rxf2 {[%clk 0:03:22.7]} 38... Rxf2 {[%clk 0:03:11.2]}
39. Kxf2 {[%clk 0:03:22.6]} 39... b5 {[%clk 0:03:09.5]} 40. c3 {[%clk
0:03:20.6]} 40... Ke5 {[%clk 0:03:08.8]} 41. Ke3 {[%clk 0:03:19.4]} 41... Kd5
{[%clk 0:03:06.9]} 42. Kd3 {[%clk 0:03:18.9]} 42... f5 {[%clk 0:03:03.8]} 43.
Ke3 {[%clk 0:03:17.9]} 43... f4+ {[%clk 0:03:02.1]} 44. Kf3 {[%clk 0:03:17.2]}
44... Kc4 {[%clk 0:03:00]} 45. Kg4 {[%clk 0:03:16.7]} 45... Kxc3 {[%clk
0:02:59.1]} 46. Kxg5 {[%clk 0:03:16.6]} 46... Kb3 {[%clk 0:02:58.1]} 47. Kxf4
{[%clk 0:03:16.3]} 47... Kxa3 {[%clk 0:02:57.3]} 48. Ke3 {[%clk 0:03:16.2]}
48... Kb3 {[%clk 0:02:56.6]} 49. Kd3 {[%clk 0:03:16.1]} 49... Kb4 {[%clk
0:02:54.5]} 50. Kc2 {[%clk 0:03:15.5]} 50... a4 {[%clk 0:02:52.7]} 51. Kb2
{[%clk 0:03:15.2]} 51... a3+ {[%clk 0:02:51]} 52. Ka2 {[%clk 0:03:13.9]} 52...
Ka4 {[%clk 0:02:48.7]} 53. Ka1 {[%clk 0:03:12.5]} 53... b4 {[%clk 0:02:48.2]}
54. Ka2 {[%clk 0:03:12]} 54... b3+ {[%clk 0:02:46.9]} 55. Ka1 {[%clk 0:03:11.7]}
55... b2+ {[%clk 0:02:44.4]} 56. Ka2 {[%clk 0:03:11.3]} 56... Kb4 {[%clk
0:02:42.5]} 57. Kb1 {[%clk 0:03:10.5]} 57... Kb3 {[%clk 0:02:40.5]} 1/2-1/2

[Event "Live Chess"]
[Site "Chess.com"]
[Date "2023.05.21"]
[Round "-"]
[White "TheSmoulderingMaster"]
[Black "Mugzwang"]
[Result "1-0"]
[WhiteElo "1646"]
[BlackElo "1545"]
[TimeControl "300"]
[EndTime "6:05:55 PDT"]
[Termination "TheSmoulderingMaster won by resignation"]

1. e4 {[%clk 0:04:58.1]} 1... c5 {[%clk 0:04:57.8]} 2. Nf3 {[%clk 0:04:56.8]}
2... Nc6 {[%clk 0:04:56.5]} 3. d4 {[%clk 0:04:55.9]} 3... cxd4 {[%clk
0:04:55.4]} 4. Nxd4 {[%clk 0:04:55]} 4... e5 {[%clk 0:04:54.4]} 5. Nb5 {[%clk
0:04:53.2]} 5... d6 {[%clk 0:04:53]} 6. N1c3 {[%clk 0:04:50.4]} 6... Be7 {[%clk
0:04:47.9]} 7. Nd5 {[%clk 0:04:48.4]} 7... Nf6 {[%clk 0:04:46.3]} 8. Ndc7+
{[%clk 0:04:43.4]} 8... Kf8 {[%clk 0:04:33.2]} 9. Nxa8 {[%clk 0:04:42.1]} 9...
a6 {[%clk 0:04:05.7]} 10. Nbc7 {[%clk 0:04:39.2]} 10... b5 {[%clk 0:03:46.7]}
11. Be3 {[%clk 0:04:34.6]} 11... Bb7 {[%clk 0:03:43.2]} 12. Bb6 {[%clk
0:04:21.9]} 12... Qc8 {[%clk 0:03:32.7]} 13. Nd5 {[%clk 0:04:00.8]} 13... Bxa8
{[%clk 0:03:20.6]} 14. Nxe7 {[%clk 0:03:56.9]} 14... Nxe7 {[%clk 0:03:18.8]} 15.
Bd3 {[%clk 0:03:52.5]} 15... Qc6 {[%clk 0:02:53.4]} 16. Be3 {[%clk 0:03:45.2]}
16... Nxe4 {[%clk 0:02:45.2]} 17. Qf3 {[%clk 0:03:38.5]} 17... d5 {[%clk
0:02:04.3]} 18. O-O {[%clk 0:03:32.5]} 18... d4 {[%clk 0:01:45.1]} 19. Bc1
{[%clk 0:03:25.4]} 19... f5 {[%clk 0:01:22.1]} 20. Re1 {[%clk 0:03:16.2]} 20...
Ng6 {[%clk 0:01:05.5]} 21. Qxf5+ {[%clk 0:03:11.2]} 21... Nf6 {[%clk 0:00:55.1]}
22. Be4 {[%clk 0:03:08.1]} 22... Qc5 {[%clk 0:00:39.8]} 23. Bxa8 {[%clk
0:03:04.1]} 1-0

[Event "Live Chess"]
[Site "Chess.com"]
[Date "2023.05.21"]
[Round "-"]
[White "ViktorTheCoolBoy"]
[Black "HoarseyHorsey"]
[Result "1-0"]
[WhiteElo "2465"]
[BlackElo "1456"]
[TimeControl "300"]
[EndTime "6:06:03 PDT"]
[Termination "ViktorTheCoolBoy won by resignation"]

1. d4 {[%clk 0:04:58.1]} 1... Nf6 {[%clk 0:04:58.8]} 2. c4 {[%clk 0:04:56.4]}
2... e6 {[%clk 0:04:56.9]} 3. Nc3 {[%clk 0:04:55]} 3... d5 {[%clk 0:04:56.5]} 4.
cxd5 {[%clk 0:04:52]} 4... exd5 {[%clk 0:04:56.4]} 5. Bg5 {[%clk 0:04:49.7]}
5... Be7 {[%clk 0:04:54.9]} 6. e3 {[%clk 0:04:47.9]} 6... O-O {[%clk 0:04:54.1]}
7. Bd3 {[%clk 0:04:46.6]} 7... c6 {[%clk 0:04:53.5]} 8. Nge2 {[%clk 0:04:45.4]}
8... Bg4 {[%clk 0:04:52.7]} 9. O-O {[%clk 0:04:43.5]} 9... Nbd7 {[%clk
0:04:50.2]} 10. Qc2 {[%clk 0:04:42.6]} 10... h6 {[%clk 0:04:48.1]} 11. Bh4
{[%clk 0:04:39.9]} 11... Re8 {[%clk 0:04:38.4]} 12. h3 {[%clk 0:04:38]} 12...
Bh5 {[%clk 0:04:37.3]} 13. Nf4 {[%clk 0:04:34.1]} 13... Bg6 {[%clk 0:04:33.5]}
14. Nxg6 {[%clk 0:04:31.7]} 14... fxg6 {[%clk 0:04:33.4]} 15. Bxg6 {[%clk
0:04:29.2]} 15... Ne4 {[%clk 0:04:32.5]} 16. Bxe7 {[%clk 0:04:22.9]} 16... Rxe7
{[%clk 0:04:30.5]} 17. Nxe4 {[%clk 0:04:21.6]} 17... dxe4 {[%clk 0:04:28.9]} 18.
Bxe4 {[%clk 0:04:21.5]} 18... Qe8 {[%clk 0:04:27.4]} 19. Bd3 {[%clk 0:04:20]}
19... Qf7 {[%clk 0:04:26]} 20. Bc4 {[%clk 0:04:17.9]} 1-0